[Event "Titled Tuesday Blitz May 10 Late 2022"]
[White "Malka, Samuel"]
[Black "Gatterer, Florian"]
[WhiteFideId "20643675"]
[BlackFideId "811688"]
[WhiteElo "2523"]
[BlackElo "2218"]
[Result "1/2-1/2"]
[Round "09"]
[TimeControl "180+1"]
[Date "2022.05.11"]
[WhiteClock "0:00:03"]
[BlackClock "0:00:01"]

1. e4 {[%clk 0:03:00]}  c6 {[%clk 0:02:44]} 2. d4 {[%clk 0:02:59]}  d5 {[%clk 0:02:44]} 3. exd5 {[%clk 0:02:56]}  cxd5 {[%clk 0:02:43]} 4. c4 {[%clk 0:02:56]}  Nf6 {[%clk 0:02:42]} 5. Nc3 {[%clk 0:02:54]}  Nc6 {[%clk 0:02:42]} 6. cxd5 {[%clk 0:02:41]}  Nxd5 {[%clk 0:02:41]} 7. Bc4 {[%clk 0:02:41]}  Be6 {[%clk 0:02:40]} 8. Bxd5 {[%clk 0:02:28]}  Bxd5 {[%clk 0:02:41]} 9. Nxd5 {[%clk 0:02:05]}  Qxd5 {[%clk 0:02:41]} 10. Nf3 {[%clk 0:02:06]}  e5 {[%clk 0:02:28]} 11. dxe5 {[%clk 0:02:01]}  Qxd1+ {[%clk 0:02:10]} 12. Kxd1 {[%clk 0:02:02]}  O-O-O+ {[%clk 0:02:09]} 13. Kc2 {[%clk 0:01:55]}  Bc5 {[%clk 0:02:01]} 14. Bd2 {[%clk 0:01:25]}  Rhe8 {[%clk 0:01:46]} 15. Bc3 {[%clk 0:01:22]}  Bxf2 {[%clk 0:01:43]} 16. Rhf1 {[%clk 0:01:20]}  Bd4 {[%clk 0:01:29]} 17. Rae1 {[%clk 0:01:12]}  Bxc3 {[%clk 0:01:19]} 18. Kxc3 {[%clk 0:01:13]}  h6 {[%clk 0:01:09]} 19. Re2 {[%clk 0:01:00]}  f6 {[%clk 0:00:56]} 20. Rfe1 {[%clk 0:00:56]}  fxe5 {[%clk 0:00:49]} 21. Nxe5 {[%clk 0:00:56]}  Nxe5 {[%clk 0:00:48]} 22. Rxe5 {[%clk 0:00:56]}  Rxe5 {[%clk 0:00:46]} 23. Rxe5 {[%clk 0:00:57]}  Rd7 {[%clk 0:00:38]} 24. Re6 {[%clk 0:00:54]}  Rf7 {[%clk 0:00:30]} 25. Rg6 {[%clk 0:00:46]}  Kd7 {[%clk 0:00:30]} 26. h4 {[%clk 0:00:42]}  Ke7 {[%clk 0:00:29]} 27. h5 {[%clk 0:00:42]}  Kf8 {[%clk 0:00:26]} 28. Rd6 {[%clk 0:00:17]}  Rc7+ {[%clk 0:00:24]} 29. Kd3 {[%clk 0:00:17]}  Ke7 {[%clk 0:00:24]} 30. Rd4 {[%clk 0:00:16]}  Kf6 {[%clk 0:00:21]} 31. g4 {[%clk 0:00:15]}  Kg5 {[%clk 0:00:19]} 32. Re4 {[%clk 0:00:13]}  Rd7+ {[%clk 0:00:16]} 33. Ke3 {[%clk 0:00:13]}  Rc7 {[%clk 0:00:16]} 34. b3 {[%clk 0:00:12]}  b6 {[%clk 0:00:15]} 35. Ra4 {[%clk 0:00:12]}  Rd7 {[%clk 0:00:14]} 36. Kf3 {[%clk 0:00:10]}  Rf7+ {[%clk 0:00:13]} 37. Kg3 {[%clk 0:00:10]}  Rd7 {[%clk 0:00:13]} 38. Rc4 {[%clk 0:00:08]}  Rd3+ {[%clk 0:00:13]} 39. Kg2 {[%clk 0:00:08]}  Kh4 {[%clk 0:00:13]} 40. Rc7 {[%clk 0:00:08]}  Rd2+ {[%clk 0:00:12]} 41. Kf3 {[%clk 0:00:08]}  Rxa2 {[%clk 0:00:11]} 42. Rxg7 {[%clk 0:00:09]}  Rb2 {[%clk 0:00:11]} 43. b4 {[%clk 0:00:06]}  Rb3+ {[%clk 0:00:09]} 44. Kf2 {[%clk 0:00:05]}  Rxb4 {[%clk 0:00:09]} 45. g5 {[%clk 0:00:06]}  Rb2+ {[%clk 0:00:04]} 46. Ke3 {[%clk 0:00:05]}  hxg5 {[%clk 0:00:04]} 47. h6 {[%clk 0:00:05]}  Kg4 {[%clk 0:00:04]} 48. h7 {[%clk 0:00:04]}  Rh2 {[%clk 0:00:04]} 49. Rxa7 {[%clk 0:00:05]}  b5 {[%clk 0:00:04]} 50. Rb7 {[%clk 0:00:05]}  b4 {[%clk 0:00:02]} 51. Rxb4+ {[%clk 0:00:04]}  Kf5 {[%clk 0:00:03]} 52. Kf3 {[%clk 0:00:02]}  Kg6 {[%clk 0:00:02]} 53. h8=Q {[%clk 0:00:02]}  Rxh8 {[%clk 0:00:02]} 54. Kg3 {[%clk 0:00:02]}  Rh4 {[%clk 0:00:02]} 55. Rxh4 {[%clk 0:00:02]}  gxh4+ {[%clk 0:00:01]} 56. Kxh4 {[%clk 0:00:03]} 1/2-1/2


[Site "https://www.chess.com"]

[Event "Titled Tuesday Blitz May 10 Late 2022"]
[White "Melikyan, Gnel"]
[Black "Can, Melih Kaan"]
[WhiteFideId "54109990"]
[BlackFideId "6317383"]
[WhiteElo "2638"]
[BlackElo "2426"]
[Result "1-0"]
[Round "09"]
[TimeControl "180+1"]
[Date "2022.05.11"]
[WhiteClock "0:01:31"]
[BlackClock "0:01:27"]

1. g3 {[%clk 0:02:58]}  c6 {[%clk 0:02:55]} 2. Bg2 {[%clk 0:02:56]}  d5 {[%clk 0:02:55]} 3. Nf3 {[%clk 0:02:56]}  Nf6 {[%clk 0:02:56]} 4. O-O {[%clk 0:02:55]}  Bf5 {[%clk 0:02:56]} 5. c4 {[%clk 0:02:55]}  e6 {[%clk 0:02:56]} 6. Qb3 {[%clk 0:02:55]}  Qb6 {[%clk 0:02:55]} 7. d3 {[%clk 0:02:55]}  Nbd7 {[%clk 0:02:54]} 8. Nc3 {[%clk 0:02:51]}  Be7 {[%clk 0:02:51]} 9. Na4 {[%clk 0:02:49]}  Qxb3 {[%clk 0:02:49]} 10. axb3 {[%clk 0:02:48]}  O-O {[%clk 0:02:46]} 11. Be3 {[%clk 0:02:36]}  Ng4 {[%clk 0:02:34]} 12. Bg5 {[%clk 0:02:29]}  Bxg5 {[%clk 0:02:28]} 13. Nxg5 {[%clk 0:02:29]}  h6 {[%clk 0:02:22]} 14. Nf3 {[%clk 0:02:27]}  Rfc8 {[%clk 0:02:17]} 15. Rfc1 {[%clk 0:02:16]}  Kf8 {[%clk 0:02:13]} 16. b4 {[%clk 0:02:12]}  dxc4 {[%clk 0:01:58]} 17. dxc4 {[%clk 0:02:10]}  Nge5 {[%clk 0:01:53]} 18. Nxe5 {[%clk 0:02:05]}  Nxe5 {[%clk 0:01:53]} 19. Nc5 {[%clk 0:02:01]}  b6 {[%clk 0:01:51]} 20. Nb3 {[%clk 0:01:58]}  Ke7 {[%clk 0:01:45]} 21. Nd4 {[%clk 0:01:56]}  c5 {[%clk 0:01:36]} 22. Nxf5+ {[%clk 0:01:54]}  exf5 {[%clk 0:01:36]} 23. Bxa8 {[%clk 0:01:54]}  Rxa8 {[%clk 0:01:36]} 24. bxc5 {[%clk 0:01:53]}  bxc5 {[%clk 0:01:37]} 25. Ra5 {[%clk 0:01:48]}  Nd7 {[%clk 0:01:37]} 26. Rca1 {[%clk 0:01:43]}  Rb8 {[%clk 0:01:35]} 27. Rxa7 {[%clk 0:01:43]}  Rxb2 {[%clk 0:01:35]} 28. Rd1 {[%clk 0:01:43]}  Rxe2 {[%clk 0:01:31]} 29. Rdxd7+ {[%clk 0:01:40]}  Kf6 {[%clk 0:01:31]} 30. Rxf7+ {[%clk 0:01:40]}  Kg5 {[%clk 0:01:32]} 31. Rxg7+ {[%clk 0:01:40]}  Kh5 {[%clk 0:01:32]} 32. Raf7 {[%clk 0:01:40]}  Re5 {[%clk 0:01:31]} 33. Kg2 {[%clk 0:01:36]}  f4 {[%clk 0:01:29]} 34. Rxf4 {[%clk 0:01:33]}  Re4 {[%clk 0:01:27]} 35. Rf5# {[%clk 0:01:31]} 1-0


[Site "https://www.chess.com"]

[Event "Titled Tuesday Blitz May 10 Late 2022"]
[White "Nazaretyan, Tigran"]
[Black "Prohorov, Olexandr"]
[WhiteFideId "24162345"]
[BlackFideId "14105578"]
[WhiteElo "2604"]
[BlackElo "2496"]
[Result "1-0"]
[Round "09"]
[TimeControl "180+1"]
[Date "2022.05.11"]
[WhiteClock "0:00:13"]
[BlackClock "0:00:01"]

1. d4 {[%clk 0:03:00]}  c5 {[%clk 0:03:00]} 2. d5 {[%clk 0:03:00]}  g6 {[%clk 0:03:00]} 3. e4 {[%clk 0:02:59]}  Bg7 {[%clk 0:02:59]} 4. Nf3 {[%clk 0:02:58]}  d6 {[%clk 0:02:57]} 5. Bb5+ {[%clk 0:02:57]}  Nd7 {[%clk 0:02:56]} 6. a4 {[%clk 0:02:57]}  Nf6 {[%clk 0:02:47]} 7. Nc3 {[%clk 0:02:51]}  a6 {[%clk 0:02:45]} 8. Be2 {[%clk 0:02:44]}  O-O {[%clk 0:02:44]} 9. O-O {[%clk 0:02:43]}  b6 {[%clk 0:02:35]} 10. h3 {[%clk 0:02:40]}  Bb7 {[%clk 0:02:34]} 11. Re1 {[%clk 0:02:31]}  Qc7 {[%clk 0:02:32]} 12. Bf1 {[%clk 0:02:30]}  Rad8 {[%clk 0:02:26]} 13. Bf4 {[%clk 0:02:30]}  Ne5 {[%clk 0:02:18]} 14. Nxe5 {[%clk 0:02:19]}  dxe5 {[%clk 0:02:17]} 15. Bh2 {[%clk 0:02:19]}  Ne8 {[%clk 0:02:13]} 16. Bc4 {[%clk 0:02:08]}  Nd6 {[%clk 0:02:11]} 17. Qe2 {[%clk 0:02:09]}  Qc8 {[%clk 0:02:03]} 18. b3 {[%clk 0:02:06]}  Rfe8 {[%clk 0:01:55]} 19. Rf1 {[%clk 0:01:58]}  f6 {[%clk 0:01:48]} 20. Rae1 {[%clk 0:01:56]}  Bh6 {[%clk 0:01:40]} 21. Kh1 {[%clk 0:01:52]}  Kg7 {[%clk 0:01:35]} 22. f4 {[%clk 0:01:49]}  exf4 {[%clk 0:01:29]} 23. e5 {[%clk 0:01:48]}  Nf7 {[%clk 0:01:16]} 24. e6 {[%clk 0:01:40]}  Nd6 {[%clk 0:01:15]} 25. Bxf4 {[%clk 0:01:32]}  Bxf4 {[%clk 0:01:15]} 26. Rxf4 {[%clk 0:01:33]}  b5 {[%clk 0:01:09]} 27. axb5 {[%clk 0:01:27]}  axb5 {[%clk 0:01:09]} 28. Nxb5 {[%clk 0:01:28]}  Bxd5 {[%clk 0:00:56]} 29. Nxd6 {[%clk 0:00:47]}  Rxd6 {[%clk 0:00:53]} 30. Bxd5 {[%clk 0:00:41]}  Rxd5 {[%clk 0:00:54]} 31. Ra4 {[%clk 0:00:35]}  Qb8 {[%clk 0:00:45]} 32. Re4 {[%clk 0:00:33]}  Red8 {[%clk 0:00:42]} 33. Qf3 {[%clk 0:00:32]}  Rd2 {[%clk 0:00:30]} 34. R4e2 {[%clk 0:00:29]}  Rxe2 {[%clk 0:00:29]} 35. Qxe2 {[%clk 0:00:29]}  Qd6 {[%clk 0:00:25]} 36. Qc4 {[%clk 0:00:27]}  Qd2 {[%clk 0:00:19]} 37. Re2 {[%clk 0:00:25]}  Qa5 {[%clk 0:00:13]} 38. Re3 {[%clk 0:00:21]}  Qd2 {[%clk 0:00:11]} 39. Qe2 {[%clk 0:00:18]}  Qc1+ {[%clk 0:00:08]} 40. Kh2 {[%clk 0:00:17]}  Rd1 {[%clk 0:00:08]} 41. Rd3 {[%clk 0:00:15]}  Rh1+ {[%clk 0:00:07]} 42. Kg3 {[%clk 0:00:15]}  Qg5+ {[%clk 0:00:05]} 43. Kf2 {[%clk 0:00:15]}  Qf4+ {[%clk 0:00:03]} 44. Rf3 {[%clk 0:00:15]}  Qd4+ {[%clk 0:00:03]} 45. Qe3 {[%clk 0:00:14]}  Qd1 {[%clk 0:00:03]} 46. Qe2 {[%clk 0:00:13]}  Qd4+ {[%clk 0:00:02]} 47. Re3 {[%clk 0:00:13]}  Qf4+ {[%clk 0:00:01]} 48. Qf3 {[%clk 0:00:13]} 1-0


[Site "https://www.chess.com"]

[Event "Titled Tuesday Blitz May 10 Late 2022"]
[White "Nozdrachev, Leonid"]
[Black "Estrada Nieto, Julian"]
[WhiteFideId "24113433"]
[BlackFideId "5101018"]
[WhiteElo "2255"]
[BlackElo "2252"]
[Result "1-0"]
[Round "09"]
[TimeControl "180+1"]
[Date "2022.05.11"]
[WhiteClock "0:01:41"]
[BlackClock "0:00:30"]

1. e4 {[%clk 0:03:00]}  e5 {[%clk 0:02:59]} 2. Nf3 {[%clk 0:02:58]}  Nc6 {[%clk 0:02:59]} 3. d4 {[%clk 0:02:57]}  exd4 {[%clk 0:02:59]} 4. Bc4 {[%clk 0:02:57]}  Bc5 {[%clk 0:02:52]} 5. c3 {[%clk 0:02:56]}  d6 {[%clk 0:02:50]} 6. cxd4 {[%clk 0:02:55]}  Bb6 {[%clk 0:02:51]} 7. Nc3 {[%clk 0:02:54]}  Nf6 {[%clk 0:02:51]} 8. Bg5 {[%clk 0:02:53]}  h6 {[%clk 0:02:50]} 9. Bh4 {[%clk 0:02:49]}  Bg4 {[%clk 0:02:49]} 10. Qb3 {[%clk 0:02:39]}  O-O {[%clk 0:02:38]} 11. O-O-O {[%clk 0:02:36]}  Bxf3 {[%clk 0:02:28]} 12. gxf3 {[%clk 0:02:37]}  Nxd4 {[%clk 0:02:28]} 13. Qa4 {[%clk 0:02:34]}  Nxf3 {[%clk 0:02:02]} 14. Bg3 {[%clk 0:02:28]}  Qe8 {[%clk 0:01:49]} 15. Qc2 {[%clk 0:02:25]}  Nd4 {[%clk 0:01:47]} 16. Qd3 {[%clk 0:02:23]}  Nd7 {[%clk 0:01:44]} 17. f4 {[%clk 0:02:19]}  Nc5 {[%clk 0:01:36]} 18. Qb1 {[%clk 0:02:02]}  Na4 {[%clk 0:01:36]} 19. Nd5 {[%clk 0:01:56]}  Nc6 {[%clk 0:01:14]} 20. e5 {[%clk 0:01:54]}  dxe5 {[%clk 0:01:08]} 21. Nf6+ {[%clk 0:01:54]}  gxf6 {[%clk 0:01:06]} 22. Qg6+ {[%clk 0:01:53]}  Kh8 {[%clk 0:01:06]} 23. Qxh6+ {[%clk 0:01:50]}  Kg8 {[%clk 0:01:06]} 24. Bh4 {[%clk 0:01:43]}  Be3+ {[%clk 0:01:01]} 25. Kb1 {[%clk 0:01:42]}  Nc3+ {[%clk 0:00:30]} 26. bxc3 {[%clk 0:01:41]} 1-0


[Site "https://www.chess.com"]

[Event "Titled Tuesday Blitz May 10 Late 2022"]
[White "Omariev, Maksim"]
[Black "Aksu, Vedat Ali"]
[WhiteFideId "4193423"]
[BlackFideId "6304320"]
[WhiteElo "2486"]
[BlackElo "2188"]
[Result "0-1"]
[Round "09"]
[TimeControl "180+1"]
[Date "2022.05.11"]
[WhiteClock "0:00:01"]
[BlackClock "0:00:15"]

1. g4 {[%clk 0:03:00]}  d5 {[%clk 0:02:57]} 2. Bg2 {[%clk 0:03:01]}  c5 {[%clk 0:02:57]} 3. h3 {[%clk 0:02:58]}  Nc6 {[%clk 0:02:57]} 4. c4 {[%clk 0:02:58]}  h5 {[%clk 0:02:57]} 5. cxd5 {[%clk 0:02:56]}  Nb4 {[%clk 0:02:48]} 6. Nc3 {[%clk 0:02:34]}  hxg4 {[%clk 0:02:47]} 7. hxg4 {[%clk 0:02:35]}  Rxh1 {[%clk 0:02:46]} 8. Bxh1 {[%clk 0:02:36]}  Bxg4 {[%clk 0:02:46]} 9. a3 {[%clk 0:02:24]}  Nd3+ {[%clk 0:02:33]} 10. Kf1 {[%clk 0:02:19]}  Nf4 {[%clk 0:02:23]} 11. Qa4+ {[%clk 0:02:16]}  Bd7 {[%clk 0:02:14]} 12. Qxf4 {[%clk 0:02:16]}  Nf6 {[%clk 0:02:13]} 13. d3 {[%clk 0:02:02]}  Qb6 {[%clk 0:02:07]} 14. Nf3 {[%clk 0:01:58]}  g6 {[%clk 0:01:51]} 15. Ne5 {[%clk 0:01:56]}  Bh3+ {[%clk 0:01:36]} 16. Ke1 {[%clk 0:01:52]}  Rd8 {[%clk 0:01:30]} 17. Qa4+ {[%clk 0:01:30]}  Nd7 {[%clk 0:01:26]} 18. Nc4 {[%clk 0:01:11]}  Qc7 {[%clk 0:01:09]} 19. Be3 {[%clk 0:01:04]}  a6 {[%clk 0:01:05]} 20. Qa5 {[%clk 0:01:00]}  Qh2 {[%clk 0:00:58]} 21. Kd2 {[%clk 0:00:58]}  b5 {[%clk 0:00:58]} 22. Nb6 {[%clk 0:00:34]}  Qc7 {[%clk 0:00:47]} 23. b4 {[%clk 0:00:34]}  Nxb6 {[%clk 0:00:43]} 24. bxc5 {[%clk 0:00:33]}  Nxd5 {[%clk 0:00:43]} 25. Qxa6 {[%clk 0:00:29]}  Nxc3 {[%clk 0:00:38]} 26. Kxc3 {[%clk 0:00:29]}  Bg7+ {[%clk 0:00:38]} 27. d4 {[%clk 0:00:22]}  Qxc5+ {[%clk 0:00:36]} 28. Kd3 {[%clk 0:00:02]}  Bf5+ {[%clk 0:00:29]} 29. Kd2 {[%clk 0:00:01]}  Rxd4+ {[%clk 0:00:28]} 30. Bxd4 {[%clk 0:00:01]}  Qxd4+ {[%clk 0:00:18]} 31. Ke1 {[%clk 0:00:01]}  Qxa1+ {[%clk 0:00:17]} 32. Kd2 {[%clk 0:00:01]}  Qb2+ {[%clk 0:00:17]} 33. Ke3 {[%clk 0:00:02]}  Qc3+ {[%clk 0:00:17]} 34. Kf4 {[%clk 0:00:02]}  Be5+ {[%clk 0:00:16]} 35. Kg5 {[%clk 0:00:01]}  Kf8 {[%clk 0:00:15]} 0-1


[Site "https://www.chess.com"]

[Event "Titled Tuesday Blitz May 10 Late 2022"]
[White "Papp, Levente"]
[Black "Derraugh, Geordie"]
[WhiteFideId "751243"]
[BlackFideId "2603950"]
[WhiteElo "2608"]
[BlackElo "2506"]
[Result "1-0"]
[Round "09"]
[TimeControl "180+1"]
[Date "2022.05.11"]
[WhiteClock "0:00:15"]
[BlackClock "0:00:04"]

1. c4 {[%clk 0:03:00]}  Nf6 {[%clk 0:02:58]} 2. Nc3 {[%clk 0:03:00]}  c5 {[%clk 0:02:54]} 3. Nf3 {[%clk 0:02:59]}  Nc6 {[%clk 0:02:53]} 4. e3 {[%clk 0:02:58]}  e5 {[%clk 0:02:52]} 5. d4 {[%clk 0:02:58]}  cxd4 {[%clk 0:02:48]} 6. exd4 {[%clk 0:02:58]}  exd4 {[%clk 0:02:38]} 7. Nxd4 {[%clk 0:02:58]}  Bb4 {[%clk 0:02:36]} 8. Nxc6 {[%clk 0:02:47]}  bxc6 {[%clk 0:02:33]} 9. Qc2 {[%clk 0:02:39]}  O-O {[%clk 0:02:31]} 10. Be2 {[%clk 0:02:39]}  d5 {[%clk 0:02:30]} 11. a3 {[%clk 0:02:26]}  Bd6 {[%clk 0:02:14]} 12. cxd5 {[%clk 0:02:16]}  cxd5 {[%clk 0:02:15]} 13. Be3 {[%clk 0:02:15]}  Qc7 {[%clk 0:01:43]} 14. Rc1 {[%clk 0:02:09]}  Be5 {[%clk 0:01:39]} 15. Nb5 {[%clk 0:02:05]}  Qa5+ {[%clk 0:01:24]} 16. b4 {[%clk 0:02:03]}  Qd8 {[%clk 0:01:22]} 17. Nd4 {[%clk 0:01:56]}  Bd7 {[%clk 0:01:20]} 18. O-O {[%clk 0:01:52]}  Re8 {[%clk 0:01:20]} 19. Rcd1 {[%clk 0:01:35]}  Rc8 {[%clk 0:01:15]} 20. Qb3 {[%clk 0:01:30]}  Bg4 {[%clk 0:01:13]} 21. Nf3 {[%clk 0:01:19]}  Rc3 {[%clk 0:00:58]} 22. Qa4 {[%clk 0:01:17]}  Bb8 {[%clk 0:00:58]} 23. Bd4 {[%clk 0:01:06]}  Rxf3 {[%clk 0:00:40]} 24. Bxf3 {[%clk 0:01:00]}  Qd6 {[%clk 0:00:20]} 25. g3 {[%clk 0:00:59]}  Bxf3 {[%clk 0:00:20]} 26. Bxf6 {[%clk 0:00:59]}  Rf8 {[%clk 0:00:15]} 27. Bd4 {[%clk 0:00:40]}  Qe6 {[%clk 0:00:14]} 28. Qb3 {[%clk 0:00:39]}  Qg4 {[%clk 0:00:10]} 29. Rd3 {[%clk 0:00:26]}  Be2 {[%clk 0:00:09]} 30. f3 {[%clk 0:00:23]}  Qf5 {[%clk 0:00:07]} 31. Rfd1 {[%clk 0:00:20]}  Bxd3 {[%clk 0:00:07]} 32. Qxd3 {[%clk 0:00:21]}  Qe6 {[%clk 0:00:05]} 33. Qc3 {[%clk 0:00:18]}  f6 {[%clk 0:00:03]} 34. Bf2 {[%clk 0:00:17]}  Qf7 {[%clk 0:00:04]} 35. Qc6 {[%clk 0:00:17]}  Rd8 {[%clk 0:00:04]} 36. b5 {[%clk 0:00:16]}  h6 {[%clk 0:00:04]} 37. a4 {[%clk 0:00:16]}  Be5 {[%clk 0:00:04]} 38. a5 {[%clk 0:00:16]}  d4 {[%clk 0:00:05]} 39. b6 {[%clk 0:00:17]}  axb6 {[%clk 0:00:05]} 40. axb6 {[%clk 0:00:17]}  Rb8 {[%clk 0:00:06]} 41. Bxd4 {[%clk 0:00:17]}  Bxd4+ {[%clk 0:00:06]} 42. Rxd4 {[%clk 0:00:17]}  Qb7 {[%clk 0:00:07]} 43. Rd8+ {[%clk 0:00:15]}  Kh7 {[%clk 0:00:06]} 44. Qc2+ {[%clk 0:00:14]}  g6 {[%clk 0:00:04]} 45. Rxb8 {[%clk 0:00:14]}  Qxb8 {[%clk 0:00:04]} 46. Qc7+ {[%clk 0:00:15]} 1-0


[Site "https://www.chess.com"]

[Event "Titled Tuesday Blitz May 10 Late 2022"]
[White "Pesotskiy, Mikhail"]
[Black "Adla, Diego"]
[WhiteFideId "34164453"]
[BlackFideId "100072"]
[WhiteElo "2010"]
[BlackElo "2377"]
[Result "0-1"]
[Round "09"]
[TimeControl "180+1"]
[Date "2022.05.11"]
[WhiteClock "0:00:22"]
[BlackClock "0:00:20"]

1. d4 {[%clk 0:03:00]}  Nf6 {[%clk 0:02:59]} 2. c4 {[%clk 0:03:00]}  e6 {[%clk 0:02:59]} 3. Nc3 {[%clk 0:02:59]}  Bb4 {[%clk 0:02:58]} 4. Qc2 {[%clk 0:02:59]}  O-O {[%clk 0:02:57]} 5. a3 {[%clk 0:02:46]}  Bxc3+ {[%clk 0:02:56]} 6. Qxc3 {[%clk 0:02:47]}  d6 {[%clk 0:02:54]} 7. Bg5 {[%clk 0:02:20]}  Nbd7 {[%clk 0:02:53]} 8. g3 {[%clk 0:02:21]}  h6 {[%clk 0:02:44]} 9. Bxf6 {[%clk 0:02:19]}  Nxf6 {[%clk 0:02:42]} 10. Bg2 {[%clk 0:02:20]}  Qe7 {[%clk 0:02:42]} 11. Nf3 {[%clk 0:02:20]}  Re8 {[%clk 0:02:40]} 12. O-O {[%clk 0:02:20]}  e5 {[%clk 0:02:40]} 13. dxe5 {[%clk 0:02:20]}  dxe5 {[%clk 0:02:40]} 14. Rfd1 {[%clk 0:02:17]}  c6 {[%clk 0:02:40]} 15. b4 {[%clk 0:02:12]}  Bg4 {[%clk 0:02:38]} 16. h3 {[%clk 0:02:12]}  Bxf3 {[%clk 0:02:37]} 17. Bxf3 {[%clk 0:02:12]}  e4 {[%clk 0:02:37]} 18. Bg2 {[%clk 0:02:12]}  e3 {[%clk 0:02:37]} 19. f4 {[%clk 0:02:10]}  Rad8 {[%clk 0:02:31]} 20. Kh2 {[%clk 0:01:40]}  Qe6 {[%clk 0:02:25]} 21. Qc2 {[%clk 0:01:10]}  b6 {[%clk 0:02:04]} 22. c5 {[%clk 0:01:10]}  bxc5 {[%clk 0:02:04]} 23. Qxc5 {[%clk 0:01:10]}  Rd2 {[%clk 0:02:02]} 24. Qxc6 {[%clk 0:00:44]}  Qxc6 {[%clk 0:01:56]} 25. Bxc6 {[%clk 0:00:45]}  Rxe2+ {[%clk 0:01:57]} 26. Kg1 {[%clk 0:00:46]}  Rc8 {[%clk 0:01:47]} 27. Rac1 {[%clk 0:00:46]}  Rd2 {[%clk 0:01:40]} 28. Bf3 {[%clk 0:00:46]}  Rxd1+ {[%clk 0:01:07]} 29. Rxd1 {[%clk 0:00:41]}  Rc3 {[%clk 0:01:08]} 30. a4 {[%clk 0:00:40]}  e2 {[%clk 0:00:41]} 31. Bxe2 {[%clk 0:00:40]}  Rxg3+ {[%clk 0:00:40]} 32. Kh2 {[%clk 0:00:41]}  Rb3 {[%clk 0:00:38]} 33. b5 {[%clk 0:00:36]}  Rb2 {[%clk 0:00:36]} 34. Re1 {[%clk 0:00:36]}  Nd5 {[%clk 0:00:32]} 35. Kg3 {[%clk 0:00:36]}  Nc3 {[%clk 0:00:29]} 36. Kf3 {[%clk 0:00:35]}  Nxa4 {[%clk 0:00:28]} 37. Rc1 {[%clk 0:00:36]}  Rb3+ {[%clk 0:00:22]} 38. Kf2 {[%clk 0:00:35]}  Nc3 {[%clk 0:00:22]} 39. Bc4 {[%clk 0:00:27]}  Ra3 {[%clk 0:00:22]} 40. Re1 {[%clk 0:00:22]}  Kf8 {[%clk 0:00:22]} 41. Re5 {[%clk 0:00:21]}  Ra4 {[%clk 0:00:21]} 42. Rc5 {[%clk 0:00:22]}  Ne4+ {[%clk 0:00:20]} 0-1


[Site "https://www.chess.com"]

[Event "Titled Tuesday Blitz May 10 Late 2022"]
[White "Petrova, Irina"]
[Black "Tomaszewski, Kacper"]
[WhiteFideId "14124122"]
[BlackFideId "1127373"]
[WhiteElo "1993"]
[BlackElo "2153"]
[Result "1/2-1/2"]
[Round "09"]
[TimeControl "180+1"]
[Date "2022.05.11"]
[WhiteClock "0:00:32"]
[BlackClock "0:00:58"]

1. e4 {[%clk 0:03:00]}  c5 {[%clk 0:02:59]} 2. Nf3 {[%clk 0:03:00]}  Nc6 {[%clk 0:02:59]} 3. Bb5 {[%clk 0:03:00]}  Nf6 {[%clk 0:02:59]} 4. Bxc6 {[%clk 0:02:58]}  dxc6 {[%clk 0:02:57]} 5. d3 {[%clk 0:02:58]}  Qc7 {[%clk 0:02:57]} 6. Nc3 {[%clk 0:02:57]}  e5 {[%clk 0:02:57]} 7. h3 {[%clk 0:02:57]}  Bd6 {[%clk 0:02:53]} 8. Be3 {[%clk 0:02:53]}  Be6 {[%clk 0:02:51]} 9. Qd2 {[%clk 0:02:48]}  h6 {[%clk 0:02:48]} 10. Nh4 {[%clk 0:02:32]}  O-O-O {[%clk 0:02:44]} 11. Nf5 {[%clk 0:02:23]}  Bxf5 {[%clk 0:02:38]} 12. exf5 {[%clk 0:02:24]}  Nd5 {[%clk 0:02:35]} 13. O-O {[%clk 0:02:14]}  Ne7 {[%clk 0:02:22]} 14. Ne4 {[%clk 0:02:09]}  Nxf5 {[%clk 0:02:20]} 15. Bxc5 {[%clk 0:02:02]}  Bxc5 {[%clk 0:02:16]} 16. Nxc5 {[%clk 0:02:03]}  Nd4 {[%clk 0:01:59]} 17. Rfe1 {[%clk 0:01:51]}  Rhe8 {[%clk 0:01:50]} 18. b4 {[%clk 0:01:43]}  f5 {[%clk 0:01:43]} 19. a4 {[%clk 0:01:40]}  e4 {[%clk 0:01:41]} 20. c3 {[%clk 0:01:08]}  Ne6 {[%clk 0:01:35]} 21. Nxe6 {[%clk 0:01:01]}  Rxe6 {[%clk 0:01:36]} 22. d4 {[%clk 0:01:00]}  f4 {[%clk 0:01:35]} 23. b5 {[%clk 0:00:57]}  c5 {[%clk 0:01:29]} 24. Qa2 {[%clk 0:00:55]}  c4 {[%clk 0:01:26]} 25. a5 {[%clk 0:00:51]}  Rdd6 {[%clk 0:01:10]} 26. b6 {[%clk 0:00:46]}  axb6 {[%clk 0:01:08]} 27. axb6 {[%clk 0:00:47]}  Rxb6 {[%clk 0:01:07]} 28. Qa8+ {[%clk 0:00:46]}  Qb8 {[%clk 0:01:04]} 29. Qa4 {[%clk 0:00:41]}  Qc7 {[%clk 0:01:03]} 30. Qa8+ {[%clk 0:00:41]}  Qb8 {[%clk 0:01:03]} 31. Qa4 {[%clk 0:00:41]}  Qc7 {[%clk 0:00:58]} 32. Qa8+ {[%clk 0:00:32]} 1/2-1/2


[Site "https://www.chess.com"]

[Event "Titled Tuesday Blitz May 10 Late 2022"]
[White "Petrovic, Aleksa"]
[Black "Sabar, Ethmane Daouda"]
[WhiteFideId "967629"]
[BlackFideId "19600097"]
[WhiteElo "2144"]
[BlackElo "1950"]
[Result "1-0"]
[Round "09"]
[TimeControl "180+1"]
[Date "2022.05.11"]
[WhiteClock "0:00:58"]
[BlackClock "0:00:10"]

1. d4 {[%clk 0:03:00]}  d5 {[%clk 0:02:19]} 2. c4 {[%clk 0:02:58]}  e5 {[%clk 0:02:20]} 3. dxe5 {[%clk 0:02:57]}  d4 {[%clk 0:02:21]} 4. Nf3 {[%clk 0:02:58]}  Nc6 {[%clk 0:02:21]} 5. a3 {[%clk 0:02:58]}  Bg4 {[%clk 0:02:21]} 6. b4 {[%clk 0:02:50]}  Bxf3 {[%clk 0:02:16]} 7. gxf3 {[%clk 0:02:48]}  Nxe5 {[%clk 0:02:16]} 8. f4 {[%clk 0:02:45]}  Nxc4 {[%clk 0:02:08]} 9. Qd3 {[%clk 0:02:21]}  Nb6 {[%clk 0:01:56]} 10. Qe4+ {[%clk 0:02:20]}  Be7 {[%clk 0:01:49]} 11. Qxb7 {[%clk 0:02:17]}  Nf6 {[%clk 0:01:45]} 12. Qc6+ {[%clk 0:02:14]}  Kf8 {[%clk 0:01:29]} 13. Nd2 {[%clk 0:02:04]}  Nbd5 {[%clk 0:01:09]} 14. Nf3 {[%clk 0:02:02]}  Nc3 {[%clk 0:01:03]} 15. Nxd4 {[%clk 0:01:54]}  Ncd5 {[%clk 0:00:40]} 16. Bg2 {[%clk 0:01:50]}  Rb8 {[%clk 0:00:39]} 17. Qc4 {[%clk 0:01:45]}  Nb6 {[%clk 0:00:34]} 18. Qd3 {[%clk 0:01:30]}  Qd6 {[%clk 0:00:11]} 19. Nc6 {[%clk 0:01:25]}  Qxd3 {[%clk 0:00:12]} 20. exd3 {[%clk 0:01:25]}  Re8 {[%clk 0:00:12]} 21. Nxe7 {[%clk 0:01:25]}  Rxe7+ {[%clk 0:00:13]} 22. Be3 {[%clk 0:01:22]}  Nbd5 {[%clk 0:00:14]} 23. Kd2 {[%clk 0:01:22]}  g6 {[%clk 0:00:12]} 24. Bc5 {[%clk 0:01:21]}  Kg7 {[%clk 0:00:10]} 25. Bxd5 {[%clk 0:01:20]}  Nxd5 {[%clk 0:00:09]} 26. Bxe7 {[%clk 0:01:20]}  Nxe7 {[%clk 0:00:10]} 27. Rac1 {[%clk 0:01:19]}  Nd5 {[%clk 0:00:11]} 28. Rc5 {[%clk 0:01:19]}  Rd8 {[%clk 0:00:10]} 29. Re1 {[%clk 0:01:15]}  Nxf4 {[%clk 0:00:10]} 30. Rxc7 {[%clk 0:01:10]}  Rxd3+ {[%clk 0:00:10]} 31. Kc2 {[%clk 0:01:10]}  Rxa3 {[%clk 0:00:10]} 32. Ree7 {[%clk 0:01:07]}  Nd5 {[%clk 0:00:09]} 33. Rxf7+ {[%clk 0:01:06]}  Kh6 {[%clk 0:00:10]} 34. Rxh7+ {[%clk 0:01:06]}  Kg5 {[%clk 0:00:10]} 35. h4+ {[%clk 0:01:04]}  Kf4 {[%clk 0:00:10]} 36. Rxa7 {[%clk 0:01:01]}  Nxb4+ {[%clk 0:00:09]} 37. Kd2 {[%clk 0:01:00]}  Rh3 {[%clk 0:00:10]} 38. Ra4 {[%clk 0:00:58]} 1-0


[Site "https://www.chess.com"]